[Event "*** Titled Tuesday Blitz"]
[Site "Chess.com"]
[Date "2021.03.30"]
[Round "11"]
[White "swisspower96"]
[Black "jacky72"]
[Result "0-1"]
[WhiteElo "2604"]
[BlackElo "2721"]
[TimeControl "180+1"]
[EndTime "12:04:52 PDT"]
[Termination "jacky72 won by resignation"]

1. d4 {[%clk 0:03:00.9]} 1... Nf6 {[%clk 0:02:58.8]} 2. c4 {[%clk 0:03:01.1]}
2... g6 {[%clk 0:02:59.3]} 3. Nc3 {[%clk 0:03:01.4]} 3... Bg7 {[%clk 0:02:59.9]}
4. e4 {[%clk 0:03:01.8]} 4... O-O {[%clk 0:03:00.8]} 5. h3 {[%clk 0:03:02.1]}
5... d6 {[%clk 0:03:01.2]} 6. Be3 {[%clk 0:03:02.3]} 6... c5 {[%clk 0:03:01.6]}
7. Nf3 {[%clk 0:03:01.8]} 7... cxd4 {[%clk 0:03:02.2]} 8. Nxd4 {[%clk
0:03:02.4]} 8... b6 {[%clk 0:03:03.1]} 9. Qc2 {[%clk 0:02:49.9]} 9... Bb7 {[%clk
0:03:03]} 10. O-O-O {[%clk 0:02:50.3]} 10... Nbd7 {[%clk 0:03:01.4]} 11. Kb1
{[%clk 0:02:48.6]} 11... Nc5 {[%clk 0:02:56.9]} 12. f3 {[%clk 0:02:46.1]} 12...
a6 {[%clk 0:02:55.6]} 13. g4 {[%clk 0:02:42.9]} 13... b5 {[%clk 0:02:55.9]} 14.
cxb5 {[%clk 0:02:42.7]} 14... axb5 {[%clk 0:02:56.4]} 15. Bxb5 {[%clk 0:02:43]}
15... Qa5 {[%clk 0:02:56.9]} 16. Rhe1 {[%clk 0:01:49]} 16... Nfxe4 {[%clk
0:02:44.4]} 17. fxe4 {[%clk 0:01:42.2]} 17... Bxe4 {[%clk 0:02:44.5]} 18. Nxe4
{[%clk 0:01:40.8]} 18... Qxa2+ {[%clk 0:02:44.9]} 19. Kc1 {[%clk 0:01:40.8]}
19... Bxd4 {[%clk 0:02:40.5]} 20. Nxc5 {[%clk 0:01:40.1]} 20... dxc5 {[%clk
0:02:31.8]} 21. Bxd4 {[%clk 0:01:32.8]} 21... cxd4 {[%clk 0:02:31.8]} 22. Rxd4
{[%clk 0:01:33.2]} 22... Qa1+ {[%clk 0:02:22.6]} 23. Qb1 {[%clk 0:01:33]} 23...
Qa5 {[%clk 0:02:16.5]} 24. Re5 {[%clk 0:01:30.4]} 24... Qc7+ {[%clk 0:01:58.5]}
0-1

[Event "*** Titled Tuesday Blitz"]
[Site "Chess.com"]
[Date "2021.03.30"]
[Round "11"]
[White "QuintilianoR"]
[Black "Ranindu2003"]
[Result "1-0"]
[WhiteElo "2723"]
[BlackElo "2605"]
[TimeControl "180+1"]
[EndTime "12:04:57 PDT"]
[Termination "QuintilianoR won by resignation"]

1. Nf3 {[%clk 0:03:00.9]} 1... Nf6 {[%clk 0:03:00]} 2. c4 {[%clk 0:03:00.4]}
2... e6 {[%clk 0:03:00.5]} 3. Nc3 {[%clk 0:02:58.8]} 3... d5 {[%clk 0:03:00.8]}
4. e3 {[%clk 0:02:58.6]} 4... dxc4 {[%clk 0:02:56.6]} 5. Bxc4 {[%clk 0:02:58]}
5... a6 {[%clk 0:02:57.5]} 6. d4 {[%clk 0:02:56.5]} 6... b5 {[%clk 0:02:57.9]}
7. Bb3 {[%clk 0:02:56.5]} 7... Bb7 {[%clk 0:02:58.3]} 8. O-O {[%clk 0:02:56.1]}
8... Nbd7 {[%clk 0:02:58.9]} 9. e4 {[%clk 0:02:56.2]} 9... Nxe4 {[%clk
0:02:56.3]} 10. Nxe4 {[%clk 0:02:55.7]} 10... Bxe4 {[%clk 0:02:57.2]} 11. Re1
{[%clk 0:02:56]} 11... Nf6 {[%clk 0:02:57.8]} 12. Rxe4 {[%clk 0:02:55.7]} 12...
Nxe4 {[%clk 0:02:58.7]} 13. Qc2 {[%clk 0:02:56.2]} 13... Nf6 {[%clk 0:02:16.7]}
14. Qc6+ {[%clk 0:02:54.6]} 14... Nd7 {[%clk 0:02:17.1]} 15. Ne5 {[%clk
0:02:54.2]} 15... Rb8 {[%clk 0:01:52.3]} 16. Nxf7 {[%clk 0:02:52.4]} 16... Qf6
{[%clk 0:01:42.4]} 17. Ne5 {[%clk 0:02:48.2]} 17... Rd8 {[%clk 0:01:22.4]} 18.
Bxe6 {[%clk 0:02:45.2]} 18... Bd6 {[%clk 0:01:20.6]} 19. Nxd7 {[%clk 0:02:12.5]}
19... Ke7 {[%clk 0:01:02]} 20. Nxf6 {[%clk 0:02:11.6]} 1-0

[Event "*** Titled Tuesday Blitz"]
[Site "Chess.com"]
[Date "2021.03.30"]
[Round "11"]
[White "hypert"]
[Black "Kildepiotr"]
[Result "1-0"]
[WhiteElo "2550"]
[BlackElo "2660"]
[TimeControl "180+1"]
[EndTime "12:05:15 PDT"]
[Termination "hypert won by resignation"]

1. e4 {[%clk 0:03:00.9]} 1... g6 {[%clk 0:02:58]} 2. Nc3 {[%clk 0:03:01.8]} 2...
Bg7 {[%clk 0:02:58.4]} 3. d4 {[%clk 0:03:02]} 3... c6 {[%clk 0:02:58.8]} 4. Be3
{[%clk 0:02:58.4]} 4... d5 {[%clk 0:02:58.8]} 5. h3 {[%clk 0:02:57.3]} 5... dxe4
{[%clk 0:02:54.6]} 6. Nxe4 {[%clk 0:02:58.2]} 6... Nf6 {[%clk 0:02:55]} 7. Nxf6+
{[%clk 0:02:57.6]} 7... Bxf6 {[%clk 0:02:55.9]} 8. Nf3 {[%clk 0:02:55.5]} 8...
Be6 {[%clk 0:02:55.7]} 9. Qd2 {[%clk 0:02:53.4]} 9... Nd7 {[%clk 0:02:53.9]} 10.
c4 {[%clk 0:02:52.3]} 10... Nb6 {[%clk 0:02:51.9]} 11. b3 {[%clk 0:02:51.6]}
11... c5 {[%clk 0:02:49.9]} 12. Rd1 {[%clk 0:02:50.7]} 12... cxd4 {[%clk
0:02:49.4]} 13. Bxd4 {[%clk 0:02:50.2]} 13... Bxd4 {[%clk 0:02:49]} 14. Nxd4
{[%clk 0:02:49.2]} 14... Qd6 {[%clk 0:02:43.2]} 15. Qe3 {[%clk 0:02:41.9]} 15...
Qb4+ {[%clk 0:02:32.5]} 16. Rd2 {[%clk 0:02:41.5]} 16... Bd7 {[%clk 0:02:31.2]}
17. Be2 {[%clk 0:02:32.3]} 17... O-O {[%clk 0:02:27.2]} 18. O-O {[%clk
0:02:31.7]} 18... Rad8 {[%clk 0:02:13.8]} 19. Rfd1 {[%clk 0:02:23.2]} 19... Qc5
{[%clk 0:02:04]} 20. Bf3 {[%clk 0:02:06.8]} 20... Qc7 {[%clk 0:01:58.2]} 21.
Qxe7 {[%clk 0:02:00.5]} 21... Rde8 {[%clk 0:01:53.4]} 22. Qf6 {[%clk 0:01:54.6]}
22... Bc8 {[%clk 0:01:53.4]} 23. Nb5 {[%clk 0:01:50.9]} 23... Qe5 {[%clk
0:01:51.9]} 24. Qxe5 {[%clk 0:01:46.6]} 24... Rxe5 {[%clk 0:01:52.8]} 25. Nxa7
{[%clk 0:01:46.4]} 25... Re7 {[%clk 0:01:49.8]} 26. c5 {[%clk 0:01:37]} 26...
Na8 {[%clk 0:01:47]} 27. Nxc8 {[%clk 0:01:34.3]} 27... Rxc8 {[%clk 0:01:46.3]}
28. Rd8+ {[%clk 0:01:34.2]} 28... Re8 {[%clk 0:01:46.5]} 29. Rxc8 {[%clk
0:01:32]} 29... Rxc8 {[%clk 0:01:46]} 30. Bxb7 {[%clk 0:01:31.5]} 1-0

[Event "*** Titled Tuesday Blitz"]
[Site "Chess.com"]
[Date "2021.03.30"]
[Round "11"]
[White "Loy_Konstantin"]
[Black "Orest_Vovk"]
[Result "0-1"]
[WhiteElo "2341"]
[BlackElo "2484"]
[TimeControl "180+1"]
[EndTime "12:05:30 PDT"]
[Termination "Orest_Vovk won by resignation"]

1. e4 {[%clk 0:03:00.9]} 1... g5 {[%clk 0:02:59]} 2. d4 {[%clk 0:02:59]} 2... h6
{[%clk 0:02:56.1]} 3. h4 {[%clk 0:02:58.8]} 3... g4 {[%clk 0:02:56.4]} 4. Qxg4
{[%clk 0:02:47.5]} 4... d5 {[%clk 0:02:54.9]} 5. Qe2 {[%clk 0:02:46.4]} 5...
dxe4 {[%clk 0:02:49.4]} 6. Qxe4 {[%clk 0:02:46.1]} 6... Nf6 {[%clk 0:02:48.4]}
7. Qd3 {[%clk 0:02:43.1]} 7... Nc6 {[%clk 0:02:48.6]} 8. Nf3 {[%clk 0:02:42.4]}
8... Bg4 {[%clk 0:02:48.2]} 9. c3 {[%clk 0:02:40.6]} 9... Qd7 {[%clk 0:02:47.4]}
10. Bf4 {[%clk 0:02:31.8]} 10... O-O-O {[%clk 0:02:47.1]} 11. Nbd2 {[%clk
0:02:32.3]} 11... Nd5 {[%clk 0:02:39.7]} 12. Bg3 {[%clk 0:02:29.8]} 12... Bf5
{[%clk 0:02:38.9]} 13. Qb5 {[%clk 0:02:08.9]} 13... Rg8 {[%clk 0:02:33.8]} 14.
Bc4 {[%clk 0:02:00.7]} 14... e6 {[%clk 0:02:30]} 15. Bxd5 {[%clk 0:01:55]} 15...
exd5 {[%clk 0:02:29.2]} 16. O-O-O {[%clk 0:01:54.9]} 16... Kb8 {[%clk
0:02:22.3]} 17. Rhe1 {[%clk 0:01:48.4]} 17... Nb4 {[%clk 0:02:20.5]} 0-1

[Event "*** Titled Tuesday Blitz"]
[Site "Chess.com"]
[Date "2021.03.30"]
[Round "11"]
[White "ChessWarrior7197"]
[Black "BilodeauA"]
[Result "1-0"]
[WhiteElo "2921"]
[BlackElo "2923"]
[TimeControl "180+1"]
[EndTime "12:05:32 PDT"]
[Termination "ChessWarrior7197 won by resignation"]

1. e4 {[%clk 0:03:00.9]} 1... e5 {[%clk 0:03:00.7]} 2. Nf3 {[%clk 0:03:00.6]}
2... Nc6 {[%clk 0:03:01.4]} 3. Bb5 {[%clk 0:03:00.1]} 3... a6 {[%clk 0:03:02]}
4. Bxc6 {[%clk 0:03:00.5]} 4... dxc6 {[%clk 0:03:02.4]} 5. O-O {[%clk
0:03:00.8]} 5... Qf6 {[%clk 0:03:01.3]} 6. d4 {[%clk 0:03:00]} 6... exd4 {[%clk
0:03:01.8]} 7. Bg5 {[%clk 0:02:59.5]} 7... Qd6 {[%clk 0:03:02.3]} 8. Nxd4 {[%clk
0:02:59.5]} 8... Be7 {[%clk 0:03:00.5]} 9. Be3 {[%clk 0:02:58]} 9... Nh6 {[%clk
0:02:53.4]} 10. f3 {[%clk 0:02:56.3]} 10... Bd7 {[%clk 0:02:48.3]} 11. Nd2
{[%clk 0:02:53.1]} 11... O-O-O {[%clk 0:02:47.4]} 12. Qe2 {[%clk 0:02:51]} 12...
Rhe8 {[%clk 0:02:20.9]} 13. Nc4 {[%clk 0:02:50.4]} 13... Qf6 {[%clk 0:02:18.3]}
14. Rad1 {[%clk 0:02:45]} 14... Bf8 {[%clk 0:02:16.7]} 15. Nb3 {[%clk
0:02:24.7]} 15... Be6 {[%clk 0:02:08.8]} 16. Nca5 {[%clk 0:02:24.7]} 16... Qxb2
{[%clk 0:01:53.9]} 17. Nxb7 {[%clk 0:02:21.6]} 17... Rxd1 {[%clk 0:01:06.3]} 18.
Rxd1 {[%clk 0:02:22.5]} 18... Qa3 {[%clk 0:00:40.6]} 19. N7a5 {[%clk 0:02:22.6]}
19... Bd6 {[%clk 0:00:31.7]} 20. Qxa6+ {[%clk 0:02:23]} 20... Kd7 {[%clk
0:00:32.3]} 21. Bc5 {[%clk 0:02:23.5]} 21... Qxa2 {[%clk 0:00:20.2]} 22. Rxd6+
{[%clk 0:02:23]} 1-0

[Event "*** Titled Tuesday Blitz"]
[Site "Chess.com"]
[Date "2021.03.30"]
[Round "11"]
[White "reniite"]
[Black "MerryPoppies"]
[Result "1-0"]
[WhiteElo "2020"]
[BlackElo "2207"]
[TimeControl "180+1"]
[EndTime "12:05:40 PDT"]
[Termination "reniite won by resignation"]

1. e4 {[%clk 0:02:58.9]} 1... e5 {[%clk 0:02:50.7]} 2. Nf3 {[%clk 0:02:58.1]}
2... Nc6 {[%clk 0:02:35.7]} 3. Bc4 {[%clk 0:02:43.7]} 3... Bc5 {[%clk
0:02:31.7]} 4. b4 {[%clk 0:02:42]} 4... Bxb4 {[%clk 0:02:30.6]} 5. c3 {[%clk
0:02:39.9]} 5... Ba5 {[%clk 0:02:30.2]} 6. d4 {[%clk 0:02:37.7]} 6... Nxd4
{[%clk 0:02:10.7]} 7. Nxd4 {[%clk 0:02:37.3]} 7... exd4 {[%clk 0:02:10.4]} 8.
Qh5 {[%clk 0:02:18.6]} 8... d5 {[%clk 0:01:51.8]} 9. Bxd5 {[%clk 0:02:06.3]}
9... Qe7 {[%clk 0:01:36.7]} 10. Ba3 {[%clk 0:01:23.5]} 10... c5 {[%clk
0:01:20.5]} 11. Bxc5 {[%clk 0:01:18.3]} 11... Qxc5 {[%clk 0:01:19.2]} 12. Bxf7+
{[%clk 0:01:17.8]} 12... Kf8 {[%clk 0:01:10.2]} 13. Qxc5+ {[%clk 0:01:16.5]}
13... Kxf7 {[%clk 0:01:11.1]} 14. Qxa5 {[%clk 0:01:16.2]} 14... Nf6 {[%clk
0:01:11.7]} 15. O-O {[%clk 0:01:14.5]} 1-0

[Event "*** Titled Tuesday Blitz"]
[Site "Chess.com"]
[Date "2021.03.30"]
[Round "11"]
[White "BvsN"]
[Black "kamilianin235"]
[Result "1-0"]
[WhiteElo "2382"]
[BlackElo "2268"]
[TimeControl "180+1"]
[EndTime "12:05:42 PDT"]
[Termination "BvsN won by resignation"]

1. c4 {[%clk 0:03:00.9]} 1... e5 {[%clk 0:02:59.4]} 2. Nc3 {[%clk 0:03:00.6]}
2... Nf6 {[%clk 0:02:59.9]} 3. Nf3 {[%clk 0:03:00.9]} 3... d6 {[%clk 0:02:58.6]}
4. g3 {[%clk 0:02:55]} 4... Nc6 {[%clk 0:02:55.4]} 5. Bg2 {[%clk 0:02:53]} 5...
g6 {[%clk 0:02:54.8]} 6. d4 {[%clk 0:02:52.9]} 6... exd4 {[%clk 0:02:53.6]} 7.
Nxd4 {[%clk 0:02:53.1]} 7... Bd7 {[%clk 0:02:52.9]} 8. O-O {[%clk 0:02:52.7]}
8... Bg7 {[%clk 0:02:51]} 9. Nc2 {[%clk 0:02:09.9]} 9... O-O {[%clk 0:02:47.2]}
10. e4 {[%clk 0:02:09.9]} 10... Re8 {[%clk 0:02:44.9]} 11. h3 {[%clk 0:02:08.4]}
11... a6 {[%clk 0:02:38.9]} 12. Be3 {[%clk 0:02:07.3]} 12... Qc8 {[%clk
0:02:24.7]} 13. Kh2 {[%clk 0:02:06.8]} 13... Ne7 {[%clk 0:02:19.9]} 14. f4
{[%clk 0:01:58.4]} 14... Bc6 {[%clk 0:02:13.1]} 15. Nd5 {[%clk 0:01:57.3]} 15...
Nexd5 {[%clk 0:01:58.5]} 16. cxd5 {[%clk 0:01:56.2]} 16... Bxd5 {[%clk
0:01:55.3]} 17. exd5 {[%clk 0:01:55.3]} 17... Qd7 {[%clk 0:01:51]} 18. Bd4
{[%clk 0:01:53.1]} 18... c5 {[%clk 0:01:49.6]} 19. dxc6 {[%clk 0:01:53]} 19...
bxc6 {[%clk 0:01:50.5]} 20. Re1 {[%clk 0:01:53.2]} 20... Rac8 {[%clk 0:01:48.3]}
21. Rxe8+ {[%clk 0:01:52.8]} 21... Nxe8 {[%clk 0:01:49.2]} 22. Bxg7 {[%clk
0:01:52.2]} 22... Nxg7 {[%clk 0:01:50.1]} 23. Qd2 {[%clk 0:01:50.6]} 23... Ne6
{[%clk 0:01:49.7]} 24. Rd1 {[%clk 0:01:50.4]} 24... d5 {[%clk 0:01:49.1]} 25.
Nd4 {[%clk 0:01:50]} 25... Nc5 {[%clk 0:01:44.1]} 26. f5 {[%clk 0:01:48.8]}
26... Rd8 {[%clk 0:01:40.1]} 27. f6 {[%clk 0:01:47.3]} 27... Qd6 {[%clk
0:01:37.9]} 28. Rf1 {[%clk 0:01:46.1]} 28... Ne4 {[%clk 0:01:35.1]} 29. Bxe4
{[%clk 0:01:38.1]} 29... dxe4 {[%clk 0:01:36]} 30. Qh6 {[%clk 0:01:38.3]} 30...
Qf8 {[%clk 0:01:35.5]} 31. Qxf8+ {[%clk 0:01:38.6]} 31... Kxf8 {[%clk
0:01:36.4]} 32. Nxc6 {[%clk 0:01:38.5]} 32... Rd2+ {[%clk 0:01:35.2]} 33. Kg1
{[%clk 0:01:38.7]} 33... Rxb2 {[%clk 0:01:34.1]} 34. Rd1 {[%clk 0:01:33.3]} 1-0

[Event "*** Titled Tuesday Blitz"]
[Site "Chess.com"]
[Date "2021.03.30"]
[Round "11"]
[White "Eternauta2400"]
[Black "nrvisakh"]
[Result "0-1"]
[WhiteElo "2432"]
[BlackElo "2789"]
[TimeControl "180+1"]
[EndTime "12:06:07 PDT"]
[Termination "nrvisakh won by resignation"]

1. e4 {[%clk 0:03:00.9]} 1... c5 {[%clk 0:02:57.2]} 2. Nf3 {[%clk 0:02:59.4]}
2... g6 {[%clk 0:02:57]} 3. c3 {[%clk 0:02:56.3]} 3... d5 {[%clk 0:02:51.8]} 4.
exd5 {[%clk 0:02:56.1]} 4... Qxd5 {[%clk 0:02:51.1]} 5. d4 {[%clk 0:02:57]} 5...
Nc6 {[%clk 0:02:46.7]} 6. Be3 {[%clk 0:02:54]} 6... cxd4 {[%clk 0:02:45.5]} 7.
Nxd4 {[%clk 0:02:53.3]} 7... Bg7 {[%clk 0:02:42.6]} 8. Nxc6 {[%clk 0:02:49.9]}
8... Qxd1+ {[%clk 0:02:37.4]} 9. Kxd1 {[%clk 0:02:49.7]} 9... bxc6 {[%clk
0:02:38.3]} 10. Kc2 {[%clk 0:02:40.4]} 10... Nf6 {[%clk 0:02:30.6]} 11. Bd3
{[%clk 0:02:40.4]} 11... Ng4 {[%clk 0:02:28.1]} 12. Nd2 {[%clk 0:02:37.8]} 12...
Nxe3+ {[%clk 0:02:11.7]} 13. fxe3 {[%clk 0:02:38.7]} 13... O-O {[%clk
0:02:02.3]} 14. Nb3 {[%clk 0:02:38.5]} 14... Be5 {[%clk 0:02:00.2]} 15. Be4
{[%clk 0:02:34.3]} 15... Rb8 {[%clk 0:01:44.8]} 16. Bxc6 {[%clk 0:02:29.8]}
16... Bf5+ {[%clk 0:01:44]} 17. e4 {[%clk 0:02:27.7]} 17... Be6 {[%clk 0:01:44]}
18. Bd5 {[%clk 0:02:23.3]} 18... Bc8 {[%clk 0:01:43.3]} 19. g3 {[%clk
0:02:13.7]} 19... Kg7 {[%clk 0:01:43]} 20. Nd4 {[%clk 0:02:02]} 20... e6 {[%clk
0:01:38]} 21. Bb3 {[%clk 0:01:53.7]} 21... Bb7 {[%clk 0:01:36.1]} 22. Rhe1
{[%clk 0:01:50.2]} 22... h5 {[%clk 0:01:33.8]} 23. Rad1 {[%clk 0:01:44.7]} 23...
Rfd8 {[%clk 0:01:23]} 24. Nf3 {[%clk 0:01:37.4]} 24... Bf6 {[%clk 0:01:22.9]}
25. Rxd8 {[%clk 0:01:33]} 25... Rxd8 {[%clk 0:01:21.7]} 26. h4 {[%clk
0:01:29.7]} 26... Be7 {[%clk 0:01:15.9]} 27. Bc4 {[%clk 0:01:27.4]} 27... Bc5
{[%clk 0:01:15.5]} 28. Re2 {[%clk 0:01:26]} 28... Bd6 {[%clk 0:01:08.9]} 29. Rg2
{[%clk 0:01:23.4]} 29... Bxe4+ {[%clk 0:01:04.4]} 0-1

[Event "*** Titled Tuesday Blitz"]
[Site "Chess.com"]
[Date "2021.03.30"]
[Round "11"]
[White "ViktoriyaTarasova"]
[Black "Deepweb2020"]
[Result "1-0"]
[WhiteElo "2427"]
[BlackElo "2490"]
[TimeControl "180+1"]
[EndTime "12:06:07 PDT"]
[Termination "ViktoriyaTarasova won by resignation"]

1. d4 {[%clk 0:03:00.9]} 1... Nf6 {[%clk 0:02:59.1]} 2. c4 {[%clk 0:03:00.6]}
2... e6 {[%clk 0:02:59.5]} 3. Nc3 {[%clk 0:03:00.3]} 3... Bb4 {[%clk 0:02:59.9]}
4. Nf3 {[%clk 0:02:59.4]} 4... b6 {[%clk 0:03:00.1]} 5. e3 {[%clk 0:02:59.1]}
5... Bb7 {[%clk 0:03:00.4]} 6. Bd3 {[%clk 0:02:58.5]} 6... Ne4 {[%clk
0:03:00.5]} 7. O-O {[%clk 0:02:57.7]} 7... Bxc3 {[%clk 0:03:01.2]} 8. bxc3
{[%clk 0:02:57.6]} 8... O-O {[%clk 0:03:01.4]} 9. Ba3 {[%clk 0:02:50.7]} 9... d6
{[%clk 0:03:00.5]} 10. Qc2 {[%clk 0:02:33.9]} 10... f5 {[%clk 0:02:56.9]} 11. d5
{[%clk 0:02:33.7]} 11... exd5 {[%clk 0:02:32.6]} 12. Nd4 {[%clk 0:02:32.9]}
12... dxc4 {[%clk 0:02:29.3]} 13. Bxc4+ {[%clk 0:02:32.2]} 13... Kh8 {[%clk
0:02:21.4]} 14. Ne6 {[%clk 0:02:30.8]} 14... Qf6 {[%clk 0:02:17.6]} 15. Nxf8
{[%clk 0:02:29.7]} 15... Qxf8 {[%clk 0:02:18.5]} 16. f3 {[%clk 0:02:25.6]} 16...
Nf6 {[%clk 0:02:16.5]} 17. Qxf5 {[%clk 0:02:24.8]} 17... Nbd7 {[%clk 0:02:16]}
18. Rae1 {[%clk 0:02:01.3]} 18... Ne5 {[%clk 0:02:15.7]} 19. Be2 {[%clk
0:01:59.2]} 19... Qf7 {[%clk 0:02:15.8]} 20. Qc2 {[%clk 0:01:57.1]} 20... Qe6
{[%clk 0:02:09.5]} 21. e4 {[%clk 0:01:55.8]} 21... Ng6 {[%clk 0:02:07.2]} 22.
Bc1 {[%clk 0:01:54.6]} 22... Nh5 {[%clk 0:02:07.1]} 23. f4 {[%clk 0:01:30.1]}
23... Bxe4 {[%clk 0:01:57.9]} 24. Bf3 {[%clk 0:01:04.8]} 24... Bxc2 {[%clk
0:01:53.6]} 25. Rxe6 {[%clk 0:01:02.4]} 25... Nhxf4 {[%clk 0:01:49.4]} 26. Bxf4
{[%clk 0:00:55.4]} 26... Nxf4 {[%clk 0:01:50.3]} 27. Bxa8 {[%clk 0:00:51.6]}
27... Nxe6 {[%clk 0:01:50.5]} 28. Bd5 {[%clk 0:00:46]} 28... Bd3 {[%clk
0:01:46.2]} 29. Rf2 {[%clk 0:00:44.4]} 1-0

[Event "*** Titled Tuesday Blitz"]
[Site "Chess.com"]
[Date "2021.03.30"]
[Round "11"]
[White "BlackWidow515"]
[Black "BJthechessgod"]
[Result "0-1"]
[WhiteElo "2195"]
[BlackElo "2327"]
[TimeControl "180+1"]
[EndTime "12:06:13 PDT"]
[Termination "BJthechessgod won by resignation"]

1. d4 {[%clk 0:03:00]} 1... Nf6 {[%clk 0:03:00]} 2. Nf3 {[%clk 0:03:00]} 2... e6
{[%clk 0:03:00.6]} 3. g3 {[%clk 0:03:00.6]} 3... b6 {[%clk 0:02:51.8]} 4. Bg2
{[%clk 0:03:00.8]} 4... Bb7 {[%clk 0:02:52.7]} 5. O-O {[%clk 0:03:00.5]} 5...
Be7 {[%clk 0:02:51.5]} 6. Nbd2 {[%clk 0:03:01.1]} 6... O-O {[%clk 0:02:51.4]} 7.
b3 {[%clk 0:03:01.5]} 7... c5 {[%clk 0:02:51.1]} 8. Bb2 {[%clk 0:03:01.9]} 8...
cxd4 {[%clk 0:02:44.4]} 9. Nxd4 {[%clk 0:02:59.8]} 9... Bxg2 {[%clk 0:02:44]}
10. Kxg2 {[%clk 0:02:59.8]} 10... Nc6 {[%clk 0:02:44.9]} 11. c4 {[%clk
0:02:59.6]} 11... Rc8 {[%clk 0:02:41.5]} 12. N2f3 {[%clk 0:02:58.4]} 12... d6
{[%clk 0:02:30.4]} 13. Qd3 {[%clk 0:02:55.3]} 13... Ne5 {[%clk 0:02:04.1]} 14.
Qe3 {[%clk 0:02:49]} 14... Nfg4 {[%clk 0:01:53.8]} 15. Qf4 {[%clk 0:02:45]}
15... Bf6 {[%clk 0:01:44.4]} 16. h3 {[%clk 0:02:41.6]} 16... Nxf3 {[%clk
0:01:44]} 17. Qxf3 {[%clk 0:02:34.6]} 17... Ne5 {[%clk 0:01:44]} 18. Qh5 {[%clk
0:02:33.1]} 18... g6 {[%clk 0:01:42.5]} 19. Qh6 {[%clk 0:02:32.8]} 19... Bg5
{[%clk 0:01:42.9]} 20. Qxg5 {[%clk 0:02:28.6]} 20... Qxg5 {[%clk 0:01:39.8]} 21.
f4 {[%clk 0:02:29.1]} 21... Qe7 {[%clk 0:01:37.8]} 22. fxe5 {[%clk 0:02:29.3]}
22... dxe5 {[%clk 0:01:38.7]} 23. Nb5 {[%clk 0:02:29.2]} 23... f6 {[%clk
0:01:38.6]} 24. Rfd1 {[%clk 0:02:27.9]} 24... Qb7+ {[%clk 0:01:38.8]} 25. Kf2
{[%clk 0:02:27.6]} 25... Rcd8 {[%clk 0:01:34.6]} 26. Ba3 {[%clk 0:02:27]} 26...
Rxd1 {[%clk 0:01:27.8]} 27. Rxd1 {[%clk 0:02:25.2]} 27... Rb8 {[%clk 0:01:26.8]}
28. Rd6 {[%clk 0:02:21]} 28... a6 {[%clk 0:01:24.5]} 29. Nc3 {[%clk 0:02:18.5]}
29... Qh1 {[%clk 0:01:24.4]} 30. h4 {[%clk 0:02:12.4]} 30... Qh2+ {[%clk
0:01:23.8]} 31. Kf3 {[%clk 0:02:12.8]} 31... f5 {[%clk 0:01:22.1]} 32. e4 {[%clk
0:01:55.8]} 32... f4 {[%clk 0:01:11.1]} 33. gxf4 {[%clk 0:01:47.7]} 33... Qxf4+
{[%clk 0:01:12]} 34. Ke2 {[%clk 0:01:47.8]} 34... Rf8 {[%clk 0:01:10.7]} 35. Rd7
{[%clk 0:01:47.8]} 35... Qf3+ {[%clk 0:01:10.8]} 36. Kd2 {[%clk 0:01:47.6]}
36... Qf2+ {[%clk 0:01:10.8]} 37. Ne2 {[%clk 0:01:47.2]} 37... Rf3 {[%clk
0:01:09]} 38. h5 {[%clk 0:01:42.6]} 38... Qe3+ {[%clk 0:01:09.2]} 39. Kd1 {[%clk
0:01:42.1]} 39... Rf1+ {[%clk 0:01:09.2]} 40. Kc2 {[%clk 0:01:42.6]} 40... Qxe2+
{[%clk 0:01:09.7]} 0-1

[Event "*** Titled Tuesday Blitz"]
[Site "Chess.com"]
[Date "2021.03.30"]
[Round "11"]
[White "Nikolakis2014"]
[Black "Vaathi_Coming"]
[Result "0-1"]
[WhiteElo "2625"]
[BlackElo "2805"]
[TimeControl "180+1"]
[EndTime "12:06:18 PDT"]
[Termination "Vaathi_Coming won by resignation"]

1. Nf3 {[%clk 0:03:00.9]} 1... Nf6 {[%clk 0:02:59.9]} 2. c4 {[%clk 0:03:00.4]}
2... c5 {[%clk 0:03:00.1]} 3. Nc3 {[%clk 0:02:59.7]} 3... Nc6 {[%clk 0:03:00.2]}
4. e3 {[%clk 0:02:59.6]} 4... e5 {[%clk 0:02:59.5]} 5. Be2 {[%clk 0:02:54.8]}
5... d6 {[%clk 0:02:48.4]} 6. O-O {[%clk 0:02:53.7]} 6... Bf5 {[%clk 0:02:34.2]}
7. d3 {[%clk 0:02:43.4]} 7... Be7 {[%clk 0:02:34.3]} 8. b3 {[%clk 0:02:43.6]}
8... O-O {[%clk 0:02:34]} 9. Bb2 {[%clk 0:02:43.9]} 9... h6 {[%clk 0:02:33]} 10.
Nd5 {[%clk 0:02:40.2]} 10... Bh7 {[%clk 0:02:26.4]} 11. Nd2 {[%clk 0:02:34]}
11... Nxd5 {[%clk 0:02:22.9]} 12. cxd5 {[%clk 0:02:33.7]} 12... Nb4 {[%clk
0:02:23.3]} 13. e4 {[%clk 0:02:34]} 13... f5 {[%clk 0:02:23.5]} 14. a3 {[%clk
0:02:33.6]} 14... Na6 {[%clk 0:02:23.2]} 15. exf5 {[%clk 0:02:15.4]} 15... Bxf5
{[%clk 0:02:22]} 16. Nc4 {[%clk 0:02:15.6]} 16... Nc7 {[%clk 0:02:20.7]} 17. Ne3
{[%clk 0:02:14]} 17... Bg6 {[%clk 0:02:19]} 18. b4 {[%clk 0:02:06.4]} 18... b6
{[%clk 0:02:14.5]} 19. Bf3 {[%clk 0:01:54.6]} 19... Bg5 {[%clk 0:02:12.4]} 20.
Qe2 {[%clk 0:01:50.6]} 20... Bf7 {[%clk 0:02:08.4]} 21. Bc3 {[%clk 0:01:20.7]}
21... Bxe3 {[%clk 0:02:07]} 22. fxe3 {[%clk 0:01:20.2]} 22... Nxd5 {[%clk
0:02:07.4]} 23. Bb2 {[%clk 0:01:19.7]} 23... Rc8 {[%clk 0:02:07]} 24. Bg4 {[%clk
0:01:11.6]} 24... Rc7 {[%clk 0:02:04.4]} 25. Rac1 {[%clk 0:01:00.2]} 25... Qg5
{[%clk 0:02:02.7]} 26. Rce1 {[%clk 0:00:45.3]} 26... Nxe3 {[%clk 0:01:57.8]} 27.
Rxf7 {[%clk 0:00:42.2]} 27... Rcxf7 {[%clk 0:01:55.8]} 28. Be6 {[%clk
0:00:42.3]} 28... Nf5 {[%clk 0:01:49.6]} 0-1